{"text_format":"3","workbook":"xlsx","n_sheets":4,"sheets":["Rezumat buget pe anul curent","Rezumat cheltuieli lunare","Detaliere cheltuieli","Caritabile şi sponsorizări"],"not_rendered":{"defined_names":8,"comments":2},"read":"whole","date_system":"1900"}

{"sheet":"Rezumat buget pe anul curent","index":0,"n_rows":30,"n_cols":6,"rows_kept":30,"merged":[[1,0,1,5]]}
[]
["Real 2005 versus Buget curent"]
[]
["Cod contabil","Titlu cont","Real","Buget","Rest în lei","Rest în procente"]
[]
[1000,"Publicitate",{"$f":"'Rezumat cheltuieli lunare'!O6","v":{"v":750.75,"d":"750.75000 lei"}},{"v":100000,"d":"100,000.00000 lei"},{"$f":"SUM(+D6-C6)","v":{"v":99249.25,"d":"99,249.25000 lei"}},{"$f":"SUM(E6/D6)","v":{"v":0.9924925,"d":"99.25%"}}]
[]
[2000,"Echipament de birou",{"$f":"'Rezumat cheltuieli lunare'!O8","v":{"v":0,"d":"0.00000 lei"}},{"v":100000,"d":"100,000.00000 lei"},{"$f":"SUM(+D8-C8)","v":{"v":100000,"d":"100,000.00000 lei"}},{"$f":"SUM(E8/D8)","v":{"v":1,"d":"100.00%"}}]
[]
[3000,"Imprimante",{"$f":"'Rezumat cheltuieli lunare'!O10","v":{"v":0,"d":"0.00000 lei"}},{"v":100000,"d":"100,000.00000 lei"},{"$f":"SUM(+D10-C10)","v":{"v":100000,"d":"100,000.00000 lei"}},{"$f":"SUM(E10/D10)","v":{"v":1,"d":"100.00%"}}]
[]
[4000,"Costuri server",{"$f":"'Rezumat cheltuieli lunare'!O12","v":{"v":0,"d":"0.00000 lei"}},{"v":100000,"d":"100,000.00000 lei"},{"$f":"SUM(+D12-C12)","v":{"v":100000,"d":"100,000.00000 lei"}},{"$f":"SUM(E12/D12)","v":{"v":1,"d":"100.00%"}}]
[]
[5000,"Materiale",{"$f":"'Rezumat cheltuieli lunare'!O14","v":{"v":0,"d":"0.00000 lei"}},{"v":50000,"d":"50,000.00000 lei"},{"$f":"SUM(+D14-C14)","v":{"v":50000,"d":"50,000.00000 lei"}},{"$f":"SUM(E14/D14)","v":{"v":1,"d":"100.00%"}}]
[]
[6000,"Cheltuieli clienţi",{"$f":"'Rezumat cheltuieli lunare'!O16","v":{"v":0,"d":"0.00000 lei"}},{"v":25000,"d":"25,000.00000 lei"},{"$f":"SUM(+D16-C16)","v":{"v":25000,"d":"25,000.00000 lei"}},{"$f":"SUM(E16/D16)","v":{"v":1,"d":"100.00%"}}]
[]
[7000,"Computere",{"$f":"'Rezumat cheltuieli lunare'!O18","v":{"v":0,"d":"0.00000 lei"}},{"v":75000,"d":"75,000.00000 lei"},{"$f":"SUM(+D18-C18)","v":{"v":75000,"d":"75,000.00000 lei"}},{"$f":"SUM(E18/D18)","v":{"v":1,"d":"100.00%"}}]
[]
[8000,"Plan sănătate",{"$f":"'Rezumat cheltuieli lunare'!O20","v":{"v":0,"d":"0.00000 lei"}},{"v":65000,"d":"65,000.00000 lei"},{"$f":"SUM(+D20-C20)","v":{"v":65000,"d":"65,000.00000 lei"}},{"$f":"SUM(E20/D20)","v":{"v":1,"d":"100.00%"}}]
[]
[9000,"Costuri construcţie",{"$f":"'Rezumat cheltuieli lunare'!O22","v":{"v":0,"d":"0.00000 lei"}},{"v":125000,"d":"125,000.00000 lei"},{"$f":"SUM(+D22-C22)","v":{"v":125000,"d":"125,000.00000 lei"}},{"$f":"SUM(E22/D22)","v":{"v":1,"d":"100.00%"}}]
[]
[10000,"Marketing",{"$f":"'Rezumat cheltuieli lunare'!O24","v":{"v":0,"d":"0.00000 lei"}},{"v":100000,"d":"100,000.00000 lei"},{"$f":"SUM(+D24-C24)","v":{"v":100000,"d":"100,000.00000 lei"}},{"$f":"SUM(E24/D24)","v":{"v":1,"d":"100.00%"}}]
[]
[11000,"Acţiuni caritabile",{"$f":"'Rezumat cheltuieli lunare'!O26","v":{"v":0,"d":"0.00000 lei"}},{"v":250000,"d":"250,000.00000 lei"},{"$f":"SUM(+D26-C26)","v":{"v":250000,"d":"250,000.00000 lei"}},{"$f":"SUM(E26/D26)","v":{"v":1,"d":"100.00%"}}]
[]
[12000,"Sponsorizări",{"$f":"'Rezumat cheltuieli lunare'!O28","v":{"v":0,"d":"0.00000 lei"}},{"v":50000,"d":"50,000.00000 lei"},{"$f":"SUM(+D28-C28)","v":{"v":50000,"d":"50,000.00000 lei"}},{"$f":"SUM(E28/D28)","v":{"v":1,"d":"100.00%"}}]
[]
[null,"TOTAL",{"$f":"SUM(C6:C28)","v":{"v":750.75,"d":"750.75000 lei"}},{"$f":"SUM(D6:D28)","v":{"v":1140000,"d":"1,140,000.00000 lei"}},{"$f":"SUM(E6:E28)","v":{"v":1139249.25,"d":"1,139,249.25000 lei"}},{"$f":"SUM(E30/D30)","v":{"v":0.999341447368421,"d":"99.93%"}}]

{"sheet":"Rezumat cheltuieli lunare","index":1,"n_rows":30,"n_cols":15,"rows_kept":30,"merged":[[1,0,1,14]]}
[]
["Cheltuieli lunare 2005"]
[]
["Cont contabil","Titlu cont","2005-01-01","2005-02-01","2005-03-01","2005-04-01","2005-05-01","2005-06-01","2005-07-01","2005-08-01","2005-09-01","2005-10-01","2005-11-01","2005-12-01",2005]
[]
[1000,"Publicitate",{"$f":"SUMIF('Caritabile şi sponsorizări'!$L:$L,\"=\"&($A6&TEXT(C$4,\"lll.aa\")),'Caritabile şi sponsorizări'!$D:$D)+SUMIF('Detaliere cheltuieli'!$J:$J,\"=\"&($A6&TEXT(C$4,\"lll.aa\")),'Detaliere cheltuieli'!$E:$E)","v":{"v":750.75,"d":"750.75 lei"}},{"$f":"SUMIF('Caritabile şi sponsorizări'!$L:$L,\"=\"&($A6&TEXT(D$4,\"lll.aa\")),'Caritabile şi sponsorizări'!$D:$D)+SUMIF('Detaliere cheltuieli'!$J:$J,\"=\"&($A6&TEXT(D$4,\"lll.aa\")),'Detaliere cheltuieli'!$E:$E)","v":0},{"$f":"SUMIF('Caritabile şi sponsorizări'!$L:$L,\"=\"&($A6&TEXT(E$4,\"lll.aa\")),'Caritabile şi sponsorizări'!$D:$D)+SUMIF('Detaliere cheltuieli'!$J:$J,\"=\"&($A6&TEXT(E$4,\"lll.aa\")),'Detaliere cheltuieli'!$E:$E)","v":0},{"$f":"SUMIF('Caritabile şi sponsorizări'!$L:$L,\"=\"&($A6&TEXT(F$4,\"lll.aa\")),'Caritabile şi sponsorizări'!$D:$D)+SUMIF('Detaliere cheltuieli'!$J:$J,\"=\"&($A6&TEXT(F$4,\"lll.aa\")),'Detaliere cheltuieli'!$E:$E)","v":0},{"$f":"SUMIF('Caritabile şi sponsorizări'!$L:$L,\"=\"&($A6&TEXT(G$4,\"lll.aa\")),'Caritabile şi sponsorizări'!$D:$D)+SUMIF('Detaliere cheltuieli'!$J:$J,\"=\"&($A6&TEXT(G$4,\"lll.aa\")),'Detaliere cheltuieli'!$E:$E)","v":0},{"$f":"SUMIF('Caritabile şi sponsorizări'!$L:$L,\"=\"&($A6&TEXT(H$4,\"lll.aa\")),'Caritabile şi sponsorizări'!$D:$D)+SUMIF('Detaliere cheltuieli'!$J:$J,\"=\"&($A6&TEXT(H$4,\"lll.aa\")),'Detaliere cheltuieli'!$E:$E)","v":0},{"$f":"SUMIF('Caritabile şi sponsorizări'!$L:$L,\"=\"&($A6&TEXT(I$4,\"lll.aa\")),'Caritabile şi sponsorizări'!$D:$D)+SUMIF('Detaliere cheltuieli'!$J:$J,\"=\"&($A6&TEXT(I$4,\"lll.aa\")),'Detaliere cheltuieli'!$E:$E)","v":0},{"$f":"SUMIF('Caritabile şi sponsorizări'!$L:$L,\"=\"&($A6&TEXT(J$4,\"lll.aa\")),'Caritabile şi sponsorizări'!$D:$D)+SUMIF('Detaliere cheltuieli'!$J:$J,\"=\"&($A6&TEXT(J$4,\"lll.aa\")),'Detaliere cheltuieli'!$E:$E)","v":0},{"$f":"SUMIF('Caritabile şi sponsorizări'!$L:$L,\"=\"&($A6&TEXT(K$4,\"lll.aa\")),'Caritabile şi sponsorizări'!$D:$D)+SUMIF('Detaliere cheltuieli'!$J:$J,\"=\"&($A6&TEXT(K$4,\"lll.aa\")),'Detaliere cheltuieli'!$E:$E)","v":0},{"$f":"SUMIF('Caritabile şi sponsorizări'!$L:$L,\"=\"&($A6&TEXT(L$4,\"lll.aa\")),'Caritabile şi sponsorizări'!$D:$D)+SUMIF('Detaliere cheltuieli'!$J:$J,\"=\"&($A6&TEXT(L$4,\"lll.aa\")),'Detaliere cheltuieli'!$E:$E)","v":0},{"$f":"SUMIF('Caritabile şi sponsorizări'!$L:$L,\"=\"&($A6&TEXT(M$4,\"lll.aa\")),'Caritabile şi sponsorizări'!$D:$D)+SUMIF('Detaliere cheltuieli'!$J:$J,\"=\"&($A6&TEXT(M$4,\"lll.aa\")),'Detaliere cheltuieli'!$E:$E)","v":0},{"$f":"SUMIF('Caritabile şi sponsorizări'!$L:$L,\"=\"&($A6&TEXT(N$4,\"lll.aa\")),'Caritabile şi sponsorizări'!$D:$D)+SUMIF('Detaliere cheltuieli'!$J:$J,\"=\"&($A6&TEXT(N$4,\"lll.aa\")),'Detaliere cheltuieli'!$E:$E)","v":0},{"$f":"SUM(C6:N6)","v":{"v":750.75,"d":"750.75 lei"}}]
[]
[2000,"Echipament de birou",{"$f":"SUMIF('Caritabile şi sponsorizări'!$L:$L,\"=\"&($A8&TEXT(C$4,\"lll.aa\")),'Caritabile şi sponsorizări'!$D:$D)+SUMIF('Detaliere cheltuieli'!$J:$J,\"=\"&($A8&TEXT(C$4,\"lll.aa\")),'Detaliere cheltuieli'!$E:$E)","v":0},{"$f":"SUMIF('Caritabile şi sponsorizări'!$L:$L,\"=\"&($A8&TEXT(D$4,\"lll.aa\")),'Caritabile şi sponsorizări'!$D:$D)+SUMIF('Detaliere cheltuieli'!$J:$J,\"=\"&($A8&TEXT(D$4,\"lll.aa\")),'Detaliere cheltuieli'!$E:$E)","v":0},{"$f":"SUMIF('Caritabile şi sponsorizări'!$L:$L,\"=\"&($A8&TEXT(E$4,\"lll.aa\")),'Caritabile şi sponsorizări'!$D:$D)+SUMIF('Detaliere cheltuieli'!$J:$J,\"=\"&($A8&TEXT(E$4,\"lll.aa\")),'Detaliere cheltuieli'!$E:$E)","v":0},{"$f":"SUMIF('Caritabile şi sponsorizări'!$L:$L,\"=\"&($A8&TEXT(F$4,\"lll.aa\")),'Caritabile şi sponsorizări'!$D:$D)+SUMIF('Detaliere cheltuieli'!$J:$J,\"=\"&($A8&TEXT(F$4,\"lll.aa\")),'Detaliere cheltuieli'!$E:$E)","v":0},{"$f":"SUMIF('Caritabile şi sponsorizări'!$L:$L,\"=\"&($A8&TEXT(G$4,\"lll.aa\")),'Caritabile şi sponsorizări'!$D:$D)+SUMIF('Detaliere cheltuieli'!$J:$J,\"=\"&($A8&TEXT(G$4,\"lll.aa\")),'Detaliere cheltuieli'!$E:$E)","v":0},{"$f":"SUMIF('Caritabile şi sponsorizări'!$L:$L,\"=\"&($A8&TEXT(H$4,\"lll.aa\")),'Caritabile şi sponsorizări'!$D:$D)+SUMIF('Detaliere cheltuieli'!$J:$J,\"=\"&($A8&TEXT(H$4,\"lll.aa\")),'Detaliere cheltuieli'!$E:$E)","v":0},{"$f":"SUMIF('Caritabile şi sponsorizări'!$L:$L,\"=\"&($A8&TEXT(I$4,\"lll.aa\")),'Caritabile şi sponsorizări'!$D:$D)+SUMIF('Detaliere cheltuieli'!$J:$J,\"=\"&($A8&TEXT(I$4,\"lll.aa\")),'Detaliere cheltuieli'!$E:$E)","v":0},{"$f":"SUMIF('Caritabile şi sponsorizări'!$L:$L,\"=\"&($A8&TEXT(J$4,\"lll.aa\")),'Caritabile şi sponsorizări'!$D:$D)+SUMIF('Detaliere cheltuieli'!$J:$J,\"=\"&($A8&TEXT(J$4,\"lll.aa\")),'Detaliere cheltuieli'!$E:$E)","v":0},{"$f":"SUMIF('Caritabile şi sponsorizări'!$L:$L,\"=\"&($A8&TEXT(K$4,\"lll.aa\")),'Caritabile şi sponsorizări'!$D:$D)+SUMIF('Detaliere cheltuieli'!$J:$J,\"=\"&($A8&TEXT(K$4,\"lll.aa\")),'Detaliere cheltuieli'!$E:$E)","v":0},{"$f":"SUMIF('Caritabile şi sponsorizări'!$L:$L,\"=\"&($A8&TEXT(L$4,\"lll.aa\")),'Caritabile şi sponsorizări'!$D:$D)+SUMIF('Detaliere cheltuieli'!$J:$J,\"=\"&($A8&TEXT(L$4,\"lll.aa\")),'Detaliere cheltuieli'!$E:$E)","v":0},{"$f":"SUMIF('Caritabile şi sponsorizări'!$L:$L,\"=\"&($A8&TEXT(M$4,\"lll.aa\")),'Caritabile şi sponsorizări'!$D:$D)+SUMIF('Detaliere cheltuieli'!$J:$J,\"=\"&($A8&TEXT(M$4,\"lll.aa\")),'Detaliere cheltuieli'!$E:$E)","v":0},{"$f":"SUMIF('Caritabile şi sponsorizări'!$L:$L,\"=\"&($A8&TEXT(N$4,\"lll.aa\")),'Caritabile şi sponsorizări'!$D:$D)+SUMIF('Detaliere cheltuieli'!$J:$J,\"=\"&($A8&TEXT(N$4,\"lll.aa\")),'Detaliere cheltuieli'!$E:$E)","v":0},{"$f":"SUM(C8:N8)","v":0}]
[]
[3000,"Imprimante",{"$f":"SUMIF('Caritabile şi sponsorizări'!$L:$L,\"=\"&($A10&TEXT(C$4,\"lll.aa\")),'Caritabile şi sponsorizări'!$D:$D)+SUMIF('Detaliere cheltuieli'!$J:$J,\"=\"&($A10&TEXT(C$4,\"lll.aa\")),'Detaliere cheltuieli'!$E:$E)","v":0},{"$f":"SUMIF('Caritabile şi sponsorizări'!$L:$L,\"=\"&($A10&TEXT(D$4,\"lll.aa\")),'Caritabile şi sponsorizări'!$D:$D)+SUMIF('Detaliere cheltuieli'!$J:$J,\"=\"&($A10&TEXT(D$4,\"lll.aa\")),'Detaliere cheltuieli'!$E:$E)","v":0},{"$f":"SUMIF('Caritabile şi sponsorizări'!$L:$L,\"=\"&($A10&TEXT(E$4,\"lll.aa\")),'Caritabile şi sponsorizări'!$D:$D)+SUMIF('Detaliere cheltuieli'!$J:$J,\"=\"&($A10&TEXT(E$4,\"lll.aa\")),'Detaliere cheltuieli'!$E:$E)","v":0},{"$f":"SUMIF('Caritabile şi sponsorizări'!$L:$L,\"=\"&($A10&TEXT(F$4,\"lll.aa\")),'Caritabile şi sponsorizări'!$D:$D)+SUMIF('Detaliere cheltuieli'!$J:$J,\"=\"&($A10&TEXT(F$4,\"lll.aa\")),'Detaliere cheltuieli'!$E:$E)","v":0},{"$f":"SUMIF('Caritabile şi sponsorizări'!$L:$L,\"=\"&($A10&TEXT(G$4,\"lll.aa\")),'Caritabile şi sponsorizări'!$D:$D)+SUMIF('Detaliere cheltuieli'!$J:$J,\"=\"&($A10&TEXT(G$4,\"lll.aa\")),'Detaliere cheltuieli'!$E:$E)","v":0},{"$f":"SUMIF('Caritabile şi sponsorizări'!$L:$L,\"=\"&($A10&TEXT(H$4,\"lll.aa\")),'Caritabile şi sponsorizări'!$D:$D)+SUMIF('Detaliere cheltuieli'!$J:$J,\"=\"&($A10&TEXT(H$4,\"lll.aa\")),'Detaliere cheltuieli'!$E:$E)","v":0},{"$f":"SUMIF('Caritabile şi sponsorizări'!$L:$L,\"=\"&($A10&TEXT(I$4,\"lll.aa\")),'Caritabile şi sponsorizări'!$D:$D)+SUMIF('Detaliere cheltuieli'!$J:$J,\"=\"&($A10&TEXT(I$4,\"lll.aa\")),'Detaliere cheltuieli'!$E:$E)","v":0},{"$f":"SUMIF('Caritabile şi sponsorizări'!$L:$L,\"=\"&($A10&TEXT(J$4,\"lll.aa\")),'Caritabile şi sponsorizări'!$D:$D)+SUMIF('Detaliere cheltuieli'!$J:$J,\"=\"&($A10&TEXT(J$4,\"lll.aa\")),'Detaliere cheltuieli'!$E:$E)","v":0},{"$f":"SUMIF('Caritabile şi sponsorizări'!$L:$L,\"=\"&($A10&TEXT(K$4,\"lll.aa\")),'Caritabile şi sponsorizări'!$D:$D)+SUMIF('Detaliere cheltuieli'!$J:$J,\"=\"&($A10&TEXT(K$4,\"lll.aa\")),'Detaliere cheltuieli'!$E:$E)","v":0},{"$f":"SUMIF('Caritabile şi sponsorizări'!$L:$L,\"=\"&($A10&TEXT(L$4,\"lll.aa\")),'Caritabile şi sponsorizări'!$D:$D)+SUMIF('Detaliere cheltuieli'!$J:$J,\"=\"&($A10&TEXT(L$4,\"lll.aa\")),'Detaliere cheltuieli'!$E:$E)","v":0},{"$f":"SUMIF('Caritabile şi sponsorizări'!$L:$L,\"=\"&($A10&TEXT(M$4,\"lll.aa\")),'Caritabile şi sponsorizări'!$D:$D)+SUMIF('Detaliere cheltuieli'!$J:$J,\"=\"&($A10&TEXT(M$4,\"lll.aa\")),'Detaliere cheltuieli'!$E:$E)","v":0},{"$f":"SUMIF('Caritabile şi sponsorizări'!$L:$L,\"=\"&($A10&TEXT(N$4,\"lll.aa\")),'Caritabile şi sponsorizări'!$D:$D)+SUMIF('Detaliere cheltuieli'!$J:$J,\"=\"&($A10&TEXT(N$4,\"lll.aa\")),'Detaliere cheltuieli'!$E:$E)","v":0},{"$f":"SUM(C10:N10)","v":0}]
[]
[4000,"Costuri server",{"$f":"SUMIF('Caritabile şi sponsorizări'!$L:$L,\"=\"&($A12&TEXT(C$4,\"lll.aa\")),'Caritabile şi sponsorizări'!$D:$D)+SUMIF('Detaliere cheltuieli'!$J:$J,\"=\"&($A12&TEXT(C$4,\"lll.aa\")),'Detaliere cheltuieli'!$E:$E)","v":0},{"$f":"SUMIF('Caritabile şi sponsorizări'!$L:$L,\"=\"&($A12&TEXT(D$4,\"lll.aa\")),'Caritabile şi sponsorizări'!$D:$D)+SUMIF('Detaliere cheltuieli'!$J:$J,\"=\"&($A12&TEXT(D$4,\"lll.aa\")),'Detaliere cheltuieli'!$E:$E)","v":0},{"$f":"SUMIF('Caritabile şi sponsorizări'!$L:$L,\"=\"&($A12&TEXT(E$4,\"lll.aa\")),'Caritabile şi sponsorizări'!$D:$D)+SUMIF('Detaliere cheltuieli'!$J:$J,\"=\"&($A12&TEXT(E$4,\"lll.aa\")),'Detaliere cheltuieli'!$E:$E)","v":0},{"$f":"SUMIF('Caritabile şi sponsorizări'!$L:$L,\"=\"&($A12&TEXT(F$4,\"lll.aa\")),'Caritabile şi sponsorizări'!$D:$D)+SUMIF('Detaliere cheltuieli'!$J:$J,\"=\"&($A12&TEXT(F$4,\"lll.aa\")),'Detaliere cheltuieli'!$E:$E)","v":0},{"$f":"SUMIF('Caritabile şi sponsorizări'!$L:$L,\"=\"&($A12&TEXT(G$4,\"lll.aa\")),'Caritabile şi sponsorizări'!$D:$D)+SUMIF('Detaliere cheltuieli'!$J:$J,\"=\"&($A12&TEXT(G$4,\"lll.aa\")),'Detaliere cheltuieli'!$E:$E)","v":0},{"$f":"SUMIF('Caritabile şi sponsorizări'!$L:$L,\"=\"&($A12&TEXT(H$4,\"lll.aa\")),'Caritabile şi sponsorizări'!$D:$D)+SUMIF('Detaliere cheltuieli'!$J:$J,\"=\"&($A12&TEXT(H$4,\"lll.aa\")),'Detaliere cheltuieli'!$E:$E)","v":0},{"$f":"SUMIF('Caritabile şi sponsorizări'!$L:$L,\"=\"&($A12&TEXT(I$4,\"lll.aa\")),'Caritabile şi sponsorizări'!$D:$D)+SUMIF('Detaliere cheltuieli'!$J:$J,\"=\"&($A12&TEXT(I$4,\"lll.aa\")),'Detaliere cheltuieli'!$E:$E)","v":0},{"$f":"SUMIF('Caritabile şi sponsorizări'!$L:$L,\"=\"&($A12&TEXT(J$4,\"lll.aa\")),'Caritabile şi sponsorizări'!$D:$D)+SUMIF('Detaliere cheltuieli'!$J:$J,\"=\"&($A12&TEXT(J$4,\"lll.aa\")),'Detaliere cheltuieli'!$E:$E)","v":0},{"$f":"SUMIF('Caritabile şi sponsorizări'!$L:$L,\"=\"&($A12&TEXT(K$4,\"lll.aa\")),'Caritabile şi sponsorizări'!$D:$D)+SUMIF('Detaliere cheltuieli'!$J:$J,\"=\"&($A12&TEXT(K$4,\"lll.aa\")),'Detaliere cheltuieli'!$E:$E)","v":0},{"$f":"SUMIF('Caritabile şi sponsorizări'!$L:$L,\"=\"&($A12&TEXT(L$4,\"lll.aa\")),'Caritabile şi sponsorizări'!$D:$D)+SUMIF('Detaliere cheltuieli'!$J:$J,\"=\"&($A12&TEXT(L$4,\"lll.aa\")),'Detaliere cheltuieli'!$E:$E)","v":0},{"$f":"SUMIF('Caritabile şi sponsorizări'!$L:$L,\"=\"&($A12&TEXT(M$4,\"lll.aa\")),'Caritabile şi sponsorizări'!$D:$D)+SUMIF('Detaliere cheltuieli'!$J:$J,\"=\"&($A12&TEXT(M$4,\"lll.aa\")),'Detaliere cheltuieli'!$E:$E)","v":0},{"$f":"SUMIF('Caritabile şi sponsorizări'!$L:$L,\"=\"&($A12&TEXT(N$4,\"lll.aa\")),'Caritabile şi sponsorizări'!$D:$D)+SUMIF('Detaliere cheltuieli'!$J:$J,\"=\"&($A12&TEXT(N$4,\"lll.aa\")),'Detaliere cheltuieli'!$E:$E)","v":0},{"$f":"SUM(C12:N12)","v":0}]
[]
[5000,"Materiale",{"$f":"SUMIF('Caritabile şi sponsorizări'!$L:$L,\"=\"&($A14&TEXT(C$4,\"lll.aa\")),'Caritabile şi sponsorizări'!$D:$D)+SUMIF('Detaliere cheltuieli'!$J:$J,\"=\"&($A14&TEXT(C$4,\"lll.aa\")),'Detaliere cheltuieli'!$E:$E)","v":0},{"$f":"SUMIF('Caritabile şi sponsorizări'!$L:$L,\"=\"&($A14&TEXT(D$4,\"lll.aa\")),'Caritabile şi sponsorizări'!$D:$D)+SUMIF('Detaliere cheltuieli'!$J:$J,\"=\"&($A14&TEXT(D$4,\"lll.aa\")),'Detaliere cheltuieli'!$E:$E)","v":0},{"$f":"SUMIF('Caritabile şi sponsorizări'!$L:$L,\"=\"&($A14&TEXT(E$4,\"lll.aa\")),'Caritabile şi sponsorizări'!$D:$D)+SUMIF('Detaliere cheltuieli'!$J:$J,\"=\"&($A14&TEXT(E$4,\"lll.aa\")),'Detaliere cheltuieli'!$E:$E)","v":0},{"$f":"SUMIF('Caritabile şi sponsorizări'!$L:$L,\"=\"&($A14&TEXT(F$4,\"lll.aa\")),'Caritabile şi sponsorizări'!$D:$D)+SUMIF('Detaliere cheltuieli'!$J:$J,\"=\"&($A14&TEXT(F$4,\"lll.aa\")),'Detaliere cheltuieli'!$E:$E)","v":0},{"$f":"SUMIF('Caritabile şi sponsorizări'!$L:$L,\"=\"&($A14&TEXT(G$4,\"lll.aa\")),'Caritabile şi sponsorizări'!$D:$D)+SUMIF('Detaliere cheltuieli'!$J:$J,\"=\"&($A14&TEXT(G$4,\"lll.aa\")),'Detaliere cheltuieli'!$E:$E)","v":0},{"$f":"SUMIF('Caritabile şi sponsorizări'!$L:$L,\"=\"&($A14&TEXT(H$4,\"lll.aa\")),'Caritabile şi sponsorizări'!$D:$D)+SUMIF('Detaliere cheltuieli'!$J:$J,\"=\"&($A14&TEXT(H$4,\"lll.aa\")),'Detaliere cheltuieli'!$E:$E)","v":0},{"$f":"SUMIF('Caritabile şi sponsorizări'!$L:$L,\"=\"&($A14&TEXT(I$4,\"lll.aa\")),'Caritabile şi sponsorizări'!$D:$D)+SUMIF('Detaliere cheltuieli'!$J:$J,\"=\"&($A14&TEXT(I$4,\"lll.aa\")),'Detaliere cheltuieli'!$E:$E)","v":0},{"$f":"SUMIF('Caritabile şi sponsorizări'!$L:$L,\"=\"&($A14&TEXT(J$4,\"lll.aa\")),'Caritabile şi sponsorizări'!$D:$D)+SUMIF('Detaliere cheltuieli'!$J:$J,\"=\"&($A14&TEXT(J$4,\"lll.aa\")),'Detaliere cheltuieli'!$E:$E)","v":0},{"$f":"SUMIF('Caritabile şi sponsorizări'!$L:$L,\"=\"&($A14&TEXT(K$4,\"lll.aa\")),'Caritabile şi sponsorizări'!$D:$D)+SUMIF('Detaliere cheltuieli'!$J:$J,\"=\"&($A14&TEXT(K$4,\"lll.aa\")),'Detaliere cheltuieli'!$E:$E)","v":0},{"$f":"SUMIF('Caritabile şi sponsorizări'!$L:$L,\"=\"&($A14&TEXT(L$4,\"lll.aa\")),'Caritabile şi sponsorizări'!$D:$D)+SUMIF('Detaliere cheltuieli'!$J:$J,\"=\"&($A14&TEXT(L$4,\"lll.aa\")),'Detaliere cheltuieli'!$E:$E)","v":0},{"$f":"SUMIF('Caritabile şi sponsorizări'!$L:$L,\"=\"&($A14&TEXT(M$4,\"lll.aa\")),'Caritabile şi sponsorizări'!$D:$D)+SUMIF('Detaliere cheltuieli'!$J:$J,\"=\"&($A14&TEXT(M$4,\"lll.aa\")),'Detaliere cheltuieli'!$E:$E)","v":0},{"$f":"SUMIF('Caritabile şi sponsorizări'!$L:$L,\"=\"&($A14&TEXT(N$4,\"lll.aa\")),'Caritabile şi sponsorizări'!$D:$D)+SUMIF('Detaliere cheltuieli'!$J:$J,\"=\"&($A14&TEXT(N$4,\"lll.aa\")),'Detaliere cheltuieli'!$E:$E)","v":0},{"$f":"SUM(C14:N14)","v":0}]
[]
[6000,"Cheltuieli clienţi",{"$f":"SUMIF('Caritabile şi sponsorizări'!$L:$L,\"=\"&($A16&TEXT(C$4,\"lll.aa\")),'Caritabile şi sponsorizări'!$D:$D)+SUMIF('Detaliere cheltuieli'!$J:$J,\"=\"&($A16&TEXT(C$4,\"lll.aa\")),'Detaliere cheltuieli'!$E:$E)","v":0},{"$f":"SUMIF('Caritabile şi sponsorizări'!$L:$L,\"=\"&($A16&TEXT(D$4,\"lll.aa\")),'Caritabile şi sponsorizări'!$D:$D)+SUMIF('Detaliere cheltuieli'!$J:$J,\"=\"&($A16&TEXT(D$4,\"lll.aa\")),'Detaliere cheltuieli'!$E:$E)","v":0},{"$f":"SUMIF('Caritabile şi sponsorizări'!$L:$L,\"=\"&($A16&TEXT(E$4,\"lll.aa\")),'Caritabile şi sponsorizări'!$D:$D)+SUMIF('Detaliere cheltuieli'!$J:$J,\"=\"&($A16&TEXT(E$4,\"lll.aa\")),'Detaliere cheltuieli'!$E:$E)","v":0},{"$f":"SUMIF('Caritabile şi sponsorizări'!$L:$L,\"=\"&($A16&TEXT(F$4,\"lll.aa\")),'Caritabile şi sponsorizări'!$D:$D)+SUMIF('Detaliere cheltuieli'!$J:$J,\"=\"&($A16&TEXT(F$4,\"lll.aa\")),'Detaliere cheltuieli'!$E:$E)","v":0},{"$f":"SUMIF('Caritabile şi sponsorizări'!$L:$L,\"=\"&($A16&TEXT(G$4,\"lll.aa\")),'Caritabile şi sponsorizări'!$D:$D)+SUMIF('Detaliere cheltuieli'!$J:$J,\"=\"&($A16&TEXT(G$4,\"lll.aa\")),'Detaliere cheltuieli'!$E:$E)","v":0},{"$f":"SUMIF('Caritabile şi sponsorizări'!$L:$L,\"=\"&($A16&TEXT(H$4,\"lll.aa\")),'Caritabile şi sponsorizări'!$D:$D)+SUMIF('Detaliere cheltuieli'!$J:$J,\"=\"&($A16&TEXT(H$4,\"lll.aa\")),'Detaliere cheltuieli'!$E:$E)","v":0},{"$f":"SUMIF('Caritabile şi sponsorizări'!$L:$L,\"=\"&($A16&TEXT(I$4,\"lll.aa\")),'Caritabile şi sponsorizări'!$D:$D)+SUMIF('Detaliere cheltuieli'!$J:$J,\"=\"&($A16&TEXT(I$4,\"lll.aa\")),'Detaliere cheltuieli'!$E:$E)","v":0},{"$f":"SUMIF('Caritabile şi sponsorizări'!$L:$L,\"=\"&($A16&TEXT(J$4,\"lll.aa\")),'Caritabile şi sponsorizări'!$D:$D)+SUMIF('Detaliere cheltuieli'!$J:$J,\"=\"&($A16&TEXT(J$4,\"lll.aa\")),'Detaliere cheltuieli'!$E:$E)","v":0},{"$f":"SUMIF('Caritabile şi sponsorizări'!$L:$L,\"=\"&($A16&TEXT(K$4,\"lll.aa\")),'Caritabile şi sponsorizări'!$D:$D)+SUMIF('Detaliere cheltuieli'!$J:$J,\"=\"&($A16&TEXT(K$4,\"lll.aa\")),'Detaliere cheltuieli'!$E:$E)","v":0},{"$f":"SUMIF('Caritabile şi sponsorizări'!$L:$L,\"=\"&($A16&TEXT(L$4,\"lll.aa\")),'Caritabile şi sponsorizări'!$D:$D)+SUMIF('Detaliere cheltuieli'!$J:$J,\"=\"&($A16&TEXT(L$4,\"lll.aa\")),'Detaliere cheltuieli'!$E:$E)","v":0},{"$f":"SUMIF('Caritabile şi sponsorizări'!$L:$L,\"=\"&($A16&TEXT(M$4,\"lll.aa\")),'Caritabile şi sponsorizări'!$D:$D)+SUMIF('Detaliere cheltuieli'!$J:$J,\"=\"&($A16&TEXT(M$4,\"lll.aa\")),'Detaliere cheltuieli'!$E:$E)","v":0},{"$f":"SUMIF('Caritabile şi sponsorizări'!$L:$L,\"=\"&($A16&TEXT(N$4,\"lll.aa\")),'Caritabile şi sponsorizări'!$D:$D)+SUMIF('Detaliere cheltuieli'!$J:$J,\"=\"&($A16&TEXT(N$4,\"lll.aa\")),'Detaliere cheltuieli'!$E:$E)","v":0},{"$f":"SUM(C16:N16)","v":0}]
[]
[7000,"Computere",{"$f":"SUMIF('Caritabile şi sponsorizări'!$L:$L,\"=\"&($A18&TEXT(C$4,\"lll.aa\")),'Caritabile şi sponsorizări'!$D:$D)+SUMIF('Detaliere cheltuieli'!$J:$J,\"=\"&($A18&TEXT(C$4,\"lll.aa\")),'Detaliere cheltuieli'!$E:$E)","v":0},{"$f":"SUMIF('Caritabile şi sponsorizări'!$L:$L,\"=\"&($A18&TEXT(D$4,\"lll.aa\")),'Caritabile şi sponsorizări'!$D:$D)+SUMIF('Detaliere cheltuieli'!$J:$J,\"=\"&($A18&TEXT(D$4,\"lll.aa\")),'Detaliere cheltuieli'!$E:$E)","v":0},{"$f":"SUMIF('Caritabile şi sponsorizări'!$L:$L,\"=\"&($A18&TEXT(E$4,\"lll.aa\")),'Caritabile şi sponsorizări'!$D:$D)+SUMIF('Detaliere cheltuieli'!$J:$J,\"=\"&($A18&TEXT(E$4,\"lll.aa\")),'Detaliere cheltuieli'!$E:$E)","v":0},{"$f":"SUMIF('Caritabile şi sponsorizări'!$L:$L,\"=\"&($A18&TEXT(F$4,\"lll.aa\")),'Caritabile şi sponsorizări'!$D:$D)+SUMIF('Detaliere cheltuieli'!$J:$J,\"=\"&($A18&TEXT(F$4,\"lll.aa\")),'Detaliere cheltuieli'!$E:$E)","v":0},{"$f":"SUMIF('Caritabile şi sponsorizări'!$L:$L,\"=\"&($A18&TEXT(G$4,\"lll.aa\")),'Caritabile şi sponsorizări'!$D:$D)+SUMIF('Detaliere cheltuieli'!$J:$J,\"=\"&($A18&TEXT(G$4,\"lll.aa\")),'Detaliere cheltuieli'!$E:$E)","v":0},{"$f":"SUMIF('Caritabile şi sponsorizări'!$L:$L,\"=\"&($A18&TEXT(H$4,\"lll.aa\")),'Caritabile şi sponsorizări'!$D:$D)+SUMIF('Detaliere cheltuieli'!$J:$J,\"=\"&($A18&TEXT(H$4,\"lll.aa\")),'Detaliere cheltuieli'!$E:$E)","v":0},{"$f":"SUMIF('Caritabile şi sponsorizări'!$L:$L,\"=\"&($A18&TEXT(I$4,\"lll.aa\")),'Caritabile şi sponsorizări'!$D:$D)+SUMIF('Detaliere cheltuieli'!$J:$J,\"=\"&($A18&TEXT(I$4,\"lll.aa\")),'Detaliere cheltuieli'!$E:$E)","v":0},{"$f":"SUMIF('Caritabile şi sponsorizări'!$L:$L,\"=\"&($A18&TEXT(J$4,\"lll.aa\")),'Caritabile şi sponsorizări'!$D:$D)+SUMIF('Detaliere cheltuieli'!$J:$J,\"=\"&($A18&TEXT(J$4,\"lll.aa\")),'Detaliere cheltuieli'!$E:$E)","v":0},{"$f":"SUMIF('Caritabile şi sponsorizări'!$L:$L,\"=\"&($A18&TEXT(K$4,\"lll.aa\")),'Caritabile şi sponsorizări'!$D:$D)+SUMIF('Detaliere cheltuieli'!$J:$J,\"=\"&($A18&TEXT(K$4,\"lll.aa\")),'Detaliere cheltuieli'!$E:$E)","v":0},{"$f":"SUMIF('Caritabile şi sponsorizări'!$L:$L,\"=\"&($A18&TEXT(L$4,\"lll.aa\")),'Caritabile şi sponsorizări'!$D:$D)+SUMIF('Detaliere cheltuieli'!$J:$J,\"=\"&($A18&TEXT(L$4,\"lll.aa\")),'Detaliere cheltuieli'!$E:$E)","v":0},{"$f":"SUMIF('Caritabile şi sponsorizări'!$L:$L,\"=\"&($A18&TEXT(M$4,\"lll.aa\")),'Caritabile şi sponsorizări'!$D:$D)+SUMIF('Detaliere cheltuieli'!$J:$J,\"=\"&($A18&TEXT(M$4,\"lll.aa\")),'Detaliere cheltuieli'!$E:$E)","v":0},{"$f":"SUMIF('Caritabile şi sponsorizări'!$L:$L,\"=\"&($A18&TEXT(N$4,\"lll.aa\")),'Caritabile şi sponsorizări'!$D:$D)+SUMIF('Detaliere cheltuieli'!$J:$J,\"=\"&($A18&TEXT(N$4,\"lll.aa\")),'Detaliere cheltuieli'!$E:$E)","v":0},{"$f":"SUM(C18:N18)","v":0}]
[]
[8000,"Plan sănătate",{"$f":"SUMIF('Caritabile şi sponsorizări'!$L:$L,\"=\"&($A20&TEXT(C$4,\"lll.aa\")),'Caritabile şi sponsorizări'!$D:$D)+SUMIF('Detaliere cheltuieli'!$J:$J,\"=\"&($A20&TEXT(C$4,\"lll.aa\")),'Detaliere cheltuieli'!$E:$E)","v":0},{"$f":"SUMIF('Caritabile şi sponsorizări'!$L:$L,\"=\"&($A20&TEXT(D$4,\"lll.aa\")),'Caritabile şi sponsorizări'!$D:$D)+SUMIF('Detaliere cheltuieli'!$J:$J,\"=\"&($A20&TEXT(D$4,\"lll.aa\")),'Detaliere cheltuieli'!$E:$E)","v":0},{"$f":"SUMIF('Caritabile şi sponsorizări'!$L:$L,\"=\"&($A20&TEXT(E$4,\"lll.aa\")),'Caritabile şi sponsorizări'!$D:$D)+SUMIF('Detaliere cheltuieli'!$J:$J,\"=\"&($A20&TEXT(E$4,\"lll.aa\")),'Detaliere cheltuieli'!$E:$E)","v":0},{"$f":"SUMIF('Caritabile şi sponsorizări'!$L:$L,\"=\"&($A20&TEXT(F$4,\"lll.aa\")),'Caritabile şi sponsorizări'!$D:$D)+SUMIF('Detaliere cheltuieli'!$J:$J,\"=\"&($A20&TEXT(F$4,\"lll.aa\")),'Detaliere cheltuieli'!$E:$E)","v":0},{"$f":"SUMIF('Caritabile şi sponsorizări'!$L:$L,\"=\"&($A20&TEXT(G$4,\"lll.aa\")),'Caritabile şi sponsorizări'!$D:$D)+SUMIF('Detaliere cheltuieli'!$J:$J,\"=\"&($A20&TEXT(G$4,\"lll.aa\")),'Detaliere cheltuieli'!$E:$E)","v":0},{"$f":"SUMIF('Caritabile şi sponsorizări'!$L:$L,\"=\"&($A20&TEXT(H$4,\"lll.aa\")),'Caritabile şi sponsorizări'!$D:$D)+SUMIF('Detaliere cheltuieli'!$J:$J,\"=\"&($A20&TEXT(H$4,\"lll.aa\")),'Detaliere cheltuieli'!$E:$E)","v":0},{"$f":"SUMIF('Caritabile şi sponsorizări'!$L:$L,\"=\"&($A20&TEXT(I$4,\"lll.aa\")),'Caritabile şi sponsorizări'!$D:$D)+SUMIF('Detaliere cheltuieli'!$J:$J,\"=\"&($A20&TEXT(I$4,\"lll.aa\")),'Detaliere cheltuieli'!$E:$E)","v":0},{"$f":"SUMIF('Caritabile şi sponsorizări'!$L:$L,\"=\"&($A20&TEXT(J$4,\"lll.aa\")),'Caritabile şi sponsorizări'!$D:$D)+SUMIF('Detaliere cheltuieli'!$J:$J,\"=\"&($A20&TEXT(J$4,\"lll.aa\")),'Detaliere cheltuieli'!$E:$E)","v":0},{"$f":"SUMIF('Caritabile şi sponsorizări'!$L:$L,\"=\"&($A20&TEXT(K$4,\"lll.aa\")),'Caritabile şi sponsorizări'!$D:$D)+SUMIF('Detaliere cheltuieli'!$J:$J,\"=\"&($A20&TEXT(K$4,\"lll.aa\")),'Detaliere cheltuieli'!$E:$E)","v":0},{"$f":"SUMIF('Caritabile şi sponsorizări'!$L:$L,\"=\"&($A20&TEXT(L$4,\"lll.aa\")),'Caritabile şi sponsorizări'!$D:$D)+SUMIF('Detaliere cheltuieli'!$J:$J,\"=\"&($A20&TEXT(L$4,\"lll.aa\")),'Detaliere cheltuieli'!$E:$E)","v":0},{"$f":"SUMIF('Caritabile şi sponsorizări'!$L:$L,\"=\"&($A20&TEXT(M$4,\"lll.aa\")),'Caritabile şi sponsorizări'!$D:$D)+SUMIF('Detaliere cheltuieli'!$J:$J,\"=\"&($A20&TEXT(M$4,\"lll.aa\")),'Detaliere cheltuieli'!$E:$E)","v":0},{"$f":"SUMIF('Caritabile şi sponsorizări'!$L:$L,\"=\"&($A20&TEXT(N$4,\"lll.aa\")),'Caritabile şi sponsorizări'!$D:$D)+SUMIF('Detaliere cheltuieli'!$J:$J,\"=\"&($A20&TEXT(N$4,\"lll.aa\")),'Detaliere cheltuieli'!$E:$E)","v":0},{"$f":"SUM(C20:N20)","v":0}]
[]
[9000,"Costuri construcţie",{"$f":"SUMIF('Caritabile şi sponsorizări'!$L:$L,\"=\"&($A22&TEXT(C$4,\"lll.aa\")),'Caritabile şi sponsorizări'!$D:$D)+SUMIF('Detaliere cheltuieli'!$J:$J,\"=\"&($A22&TEXT(C$4,\"lll.aa\")),'Detaliere cheltuieli'!$E:$E)","v":0},{"$f":"SUMIF('Caritabile şi sponsorizări'!$L:$L,\"=\"&($A22&TEXT(D$4,\"lll.aa\")),'Caritabile şi sponsorizări'!$D:$D)+SUMIF('Detaliere cheltuieli'!$J:$J,\"=\"&($A22&TEXT(D$4,\"lll.aa\")),'Detaliere cheltuieli'!$E:$E)","v":0},{"$f":"SUMIF('Caritabile şi sponsorizări'!$L:$L,\"=\"&($A22&TEXT(E$4,\"lll.aa\")),'Caritabile şi sponsorizări'!$D:$D)+SUMIF('Detaliere cheltuieli'!$J:$J,\"=\"&($A22&TEXT(E$4,\"lll.aa\")),'Detaliere cheltuieli'!$E:$E)","v":0},{"$f":"SUMIF('Caritabile şi sponsorizări'!$L:$L,\"=\"&($A22&TEXT(F$4,\"lll.aa\")),'Caritabile şi sponsorizări'!$D:$D)+SUMIF('Detaliere cheltuieli'!$J:$J,\"=\"&($A22&TEXT(F$4,\"lll.aa\")),'Detaliere cheltuieli'!$E:$E)","v":0},{"$f":"SUMIF('Caritabile şi sponsorizări'!$L:$L,\"=\"&($A22&TEXT(G$4,\"lll.aa\")),'Caritabile şi sponsorizări'!$D:$D)+SUMIF('Detaliere cheltuieli'!$J:$J,\"=\"&($A22&TEXT(G$4,\"lll.aa\")),'Detaliere cheltuieli'!$E:$E)","v":0},{"$f":"SUMIF('Caritabile şi sponsorizări'!$L:$L,\"=\"&($A22&TEXT(H$4,\"lll.aa\")),'Caritabile şi sponsorizări'!$D:$D)+SUMIF('Detaliere cheltuieli'!$J:$J,\"=\"&($A22&TEXT(H$4,\"lll.aa\")),'Detaliere cheltuieli'!$E:$E)","v":0},{"$f":"SUMIF('Caritabile şi sponsorizări'!$L:$L,\"=\"&($A22&TEXT(I$4,\"lll.aa\")),'Caritabile şi sponsorizări'!$D:$D)+SUMIF('Detaliere cheltuieli'!$J:$J,\"=\"&($A22&TEXT(I$4,\"lll.aa\")),'Detaliere cheltuieli'!$E:$E)","v":0},{"$f":"SUMIF('Caritabile şi sponsorizări'!$L:$L,\"=\"&($A22&TEXT(J$4,\"lll.aa\")),'Caritabile şi sponsorizări'!$D:$D)+SUMIF('Detaliere cheltuieli'!$J:$J,\"=\"&($A22&TEXT(J$4,\"lll.aa\")),'Detaliere cheltuieli'!$E:$E)","v":0},{"$f":"SUMIF('Caritabile şi sponsorizări'!$L:$L,\"=\"&($A22&TEXT(K$4,\"lll.aa\")),'Caritabile şi sponsorizări'!$D:$D)+SUMIF('Detaliere cheltuieli'!$J:$J,\"=\"&($A22&TEXT(K$4,\"lll.aa\")),'Detaliere cheltuieli'!$E:$E)","v":0},{"$f":"SUMIF('Caritabile şi sponsorizări'!$L:$L,\"=\"&($A22&TEXT(L$4,\"lll.aa\")),'Caritabile şi sponsorizări'!$D:$D)+SUMIF('Detaliere cheltuieli'!$J:$J,\"=\"&($A22&TEXT(L$4,\"lll.aa\")),'Detaliere cheltuieli'!$E:$E)","v":0},{"$f":"SUMIF('Caritabile şi sponsorizări'!$L:$L,\"=\"&($A22&TEXT(M$4,\"lll.aa\")),'Caritabile şi sponsorizări'!$D:$D)+SUMIF('Detaliere cheltuieli'!$J:$J,\"=\"&($A22&TEXT(M$4,\"lll.aa\")),'Detaliere cheltuieli'!$E:$E)","v":0},{"$f":"SUMIF('Caritabile şi sponsorizări'!$L:$L,\"=\"&($A22&TEXT(N$4,\"lll.aa\")),'Caritabile şi sponsorizări'!$D:$D)+SUMIF('Detaliere cheltuieli'!$J:$J,\"=\"&($A22&TEXT(N$4,\"lll.aa\")),'Detaliere cheltuieli'!$E:$E)","v":0},{"$f":"SUM(C22:N22)","v":0}]
[]
[10000,"Marketing",{"$f":"SUMIF('Caritabile şi sponsorizări'!$L:$L,\"=\"&($A24&TEXT(C$4,\"lll.aa\")),'Caritabile şi sponsorizări'!$D:$D)+SUMIF('Detaliere cheltuieli'!$J:$J,\"=\"&($A24&TEXT(C$4,\"lll.aa\")),'Detaliere cheltuieli'!$E:$E)","v":0},{"$f":"SUMIF('Caritabile şi sponsorizări'!$L:$L,\"=\"&($A24&TEXT(D$4,\"lll.aa\")),'Caritabile şi sponsorizări'!$D:$D)+SUMIF('Detaliere cheltuieli'!$J:$J,\"=\"&($A24&TEXT(D$4,\"lll.aa\")),'Detaliere cheltuieli'!$E:$E)","v":0},{"$f":"SUMIF('Caritabile şi sponsorizări'!$L:$L,\"=\"&($A24&TEXT(E$4,\"lll.aa\")),'Caritabile şi sponsorizări'!$D:$D)+SUMIF('Detaliere cheltuieli'!$J:$J,\"=\"&($A24&TEXT(E$4,\"lll.aa\")),'Detaliere cheltuieli'!$E:$E)","v":0},{"$f":"SUMIF('Caritabile şi sponsorizări'!$L:$L,\"=\"&($A24&TEXT(F$4,\"lll.aa\")),'Caritabile şi sponsorizări'!$D:$D)+SUMIF('Detaliere cheltuieli'!$J:$J,\"=\"&($A24&TEXT(F$4,\"lll.aa\")),'Detaliere cheltuieli'!$E:$E)","v":0},{"$f":"SUMIF('Caritabile şi sponsorizări'!$L:$L,\"=\"&($A24&TEXT(G$4,\"lll.aa\")),'Caritabile şi sponsorizări'!$D:$D)+SUMIF('Detaliere cheltuieli'!$J:$J,\"=\"&($A24&TEXT(G$4,\"lll.aa\")),'Detaliere cheltuieli'!$E:$E)","v":0},{"$f":"SUMIF('Caritabile şi sponsorizări'!$L:$L,\"=\"&($A24&TEXT(H$4,\"lll.aa\")),'Caritabile şi sponsorizări'!$D:$D)+SUMIF('Detaliere cheltuieli'!$J:$J,\"=\"&($A24&TEXT(H$4,\"lll.aa\")),'Detaliere cheltuieli'!$E:$E)","v":0},{"$f":"SUMIF('Caritabile şi sponsorizări'!$L:$L,\"=\"&($A24&TEXT(I$4,\"lll.aa\")),'Caritabile şi sponsorizări'!$D:$D)+SUMIF('Detaliere cheltuieli'!$J:$J,\"=\"&($A24&TEXT(I$4,\"lll.aa\")),'Detaliere cheltuieli'!$E:$E)","v":0},{"$f":"SUMIF('Caritabile şi sponsorizări'!$L:$L,\"=\"&($A24&TEXT(J$4,\"lll.aa\")),'Caritabile şi sponsorizări'!$D:$D)+SUMIF('Detaliere cheltuieli'!$J:$J,\"=\"&($A24&TEXT(J$4,\"lll.aa\")),'Detaliere cheltuieli'!$E:$E)","v":0},{"$f":"SUMIF('Caritabile şi sponsorizări'!$L:$L,\"=\"&($A24&TEXT(K$4,\"lll.aa\")),'Caritabile şi sponsorizări'!$D:$D)+SUMIF('Detaliere cheltuieli'!$J:$J,\"=\"&($A24&TEXT(K$4,\"lll.aa\")),'Detaliere cheltuieli'!$E:$E)","v":0},{"$f":"SUMIF('Caritabile şi sponsorizări'!$L:$L,\"=\"&($A24&TEXT(L$4,\"lll.aa\")),'Caritabile şi sponsorizări'!$D:$D)+SUMIF('Detaliere cheltuieli'!$J:$J,\"=\"&($A24&TEXT(L$4,\"lll.aa\")),'Detaliere cheltuieli'!$E:$E)","v":0},{"$f":"SUMIF('Caritabile şi sponsorizări'!$L:$L,\"=\"&($A24&TEXT(M$4,\"lll.aa\")),'Caritabile şi sponsorizări'!$D:$D)+SUMIF('Detaliere cheltuieli'!$J:$J,\"=\"&($A24&TEXT(M$4,\"lll.aa\")),'Detaliere cheltuieli'!$E:$E)","v":0},{"$f":"SUMIF('Caritabile şi sponsorizări'!$L:$L,\"=\"&($A24&TEXT(N$4,\"lll.aa\")),'Caritabile şi sponsorizări'!$D:$D)+SUMIF('Detaliere cheltuieli'!$J:$J,\"=\"&($A24&TEXT(N$4,\"lll.aa\")),'Detaliere cheltuieli'!$E:$E)","v":0},{"$f":"SUM(C24:N24)","v":0}]
[]
[11000,"Acţiuni caritabile",{"$f":"SUMIF('Caritabile şi sponsorizări'!$L:$L,\"=\"&($A26&TEXT(C$4,\"lll.aa\")),'Caritabile şi sponsorizări'!$D:$D)+SUMIF('Detaliere cheltuieli'!$J:$J,\"=\"&($A26&TEXT(C$4,\"lll.aa\")),'Detaliere cheltuieli'!$E:$E)","v":0},{"$f":"SUMIF('Caritabile şi sponsorizări'!$L:$L,\"=\"&($A26&TEXT(D$4,\"lll.aa\")),'Caritabile şi sponsorizări'!$D:$D)+SUMIF('Detaliere cheltuieli'!$J:$J,\"=\"&($A26&TEXT(D$4,\"lll.aa\")),'Detaliere cheltuieli'!$E:$E)","v":0},{"$f":"SUMIF('Caritabile şi sponsorizări'!$L:$L,\"=\"&($A26&TEXT(E$4,\"lll.aa\")),'Caritabile şi sponsorizări'!$D:$D)+SUMIF('Detaliere cheltuieli'!$J:$J,\"=\"&($A26&TEXT(E$4,\"lll.aa\")),'Detaliere cheltuieli'!$E:$E)","v":0},{"$f":"SUMIF('Caritabile şi sponsorizări'!$L:$L,\"=\"&($A26&TEXT(F$4,\"lll.aa\")),'Caritabile şi sponsorizări'!$D:$D)+SUMIF('Detaliere cheltuieli'!$J:$J,\"=\"&($A26&TEXT(F$4,\"lll.aa\")),'Detaliere cheltuieli'!$E:$E)","v":0},{"$f":"SUMIF('Caritabile şi sponsorizări'!$L:$L,\"=\"&($A26&TEXT(G$4,\"lll.aa\")),'Caritabile şi sponsorizări'!$D:$D)+SUMIF('Detaliere cheltuieli'!$J:$J,\"=\"&($A26&TEXT(G$4,\"lll.aa\")),'Detaliere cheltuieli'!$E:$E)","v":0},{"$f":"SUMIF('Caritabile şi sponsorizări'!$L:$L,\"=\"&($A26&TEXT(H$4,\"lll.aa\")),'Caritabile şi sponsorizări'!$D:$D)+SUMIF('Detaliere cheltuieli'!$J:$J,\"=\"&($A26&TEXT(H$4,\"lll.aa\")),'Detaliere cheltuieli'!$E:$E)","v":0},{"$f":"SUMIF('Caritabile şi sponsorizări'!$L:$L,\"=\"&($A26&TEXT(I$4,\"lll.aa\")),'Caritabile şi sponsorizări'!$D:$D)+SUMIF('Detaliere cheltuieli'!$J:$J,\"=\"&($A26&TEXT(I$4,\"lll.aa\")),'Detaliere cheltuieli'!$E:$E)","v":0},{"$f":"SUMIF('Caritabile şi sponsorizări'!$L:$L,\"=\"&($A26&TEXT(J$4,\"lll.aa\")),'Caritabile şi sponsorizări'!$D:$D)+SUMIF('Detaliere cheltuieli'!$J:$J,\"=\"&($A26&TEXT(J$4,\"lll.aa\")),'Detaliere cheltuieli'!$E:$E)","v":0},{"$f":"SUMIF('Caritabile şi sponsorizări'!$L:$L,\"=\"&($A26&TEXT(K$4,\"lll.aa\")),'Caritabile şi sponsorizări'!$D:$D)+SUMIF('Detaliere cheltuieli'!$J:$J,\"=\"&($A26&TEXT(K$4,\"lll.aa\")),'Detaliere cheltuieli'!$E:$E)","v":0},{"$f":"SUMIF('Caritabile şi sponsorizări'!$L:$L,\"=\"&($A26&TEXT(L$4,\"lll.aa\")),'Caritabile şi sponsorizări'!$D:$D)+SUMIF('Detaliere cheltuieli'!$J:$J,\"=\"&($A26&TEXT(L$4,\"lll.aa\")),'Detaliere cheltuieli'!$E:$E)","v":0},{"$f":"SUMIF('Caritabile şi sponsorizări'!$L:$L,\"=\"&($A26&TEXT(M$4,\"lll.aa\")),'Caritabile şi sponsorizări'!$D:$D)+SUMIF('Detaliere cheltuieli'!$J:$J,\"=\"&($A26&TEXT(M$4,\"lll.aa\")),'Detaliere cheltuieli'!$E:$E)","v":0},{"$f":"SUMIF('Caritabile şi sponsorizări'!$L:$L,\"=\"&($A26&TEXT(N$4,\"lll.aa\")),'Caritabile şi sponsorizări'!$D:$D)+SUMIF('Detaliere cheltuieli'!$J:$J,\"=\"&($A26&TEXT(N$4,\"lll.aa\")),'Detaliere cheltuieli'!$E:$E)","v":0},{"$f":"SUM(C26:N26)","v":0}]
[]
[12000,"Sponsorizări",{"$f":"SUMIF('Caritabile şi sponsorizări'!$L:$L,\"=\"&($A28&TEXT(C$4,\"lll.aa\")),'Caritabile şi sponsorizări'!$D:$D)+SUMIF('Detaliere cheltuieli'!$J:$J,\"=\"&($A28&TEXT(C$4,\"lll.aa\")),'Detaliere cheltuieli'!$E:$E)","v":0},{"$f":"SUMIF('Caritabile şi sponsorizări'!$L:$L,\"=\"&($A28&TEXT(D$4,\"lll.aa\")),'Caritabile şi sponsorizări'!$D:$D)+SUMIF('Detaliere cheltuieli'!$J:$J,\"=\"&($A28&TEXT(D$4,\"lll.aa\")),'Detaliere cheltuieli'!$E:$E)","v":0},{"$f":"SUMIF('Caritabile şi sponsorizări'!$L:$L,\"=\"&($A28&TEXT(E$4,\"lll.aa\")),'Caritabile şi sponsorizări'!$D:$D)+SUMIF('Detaliere cheltuieli'!$J:$J,\"=\"&($A28&TEXT(E$4,\"lll.aa\")),'Detaliere cheltuieli'!$E:$E)","v":0},{"$f":"SUMIF('Caritabile şi sponsorizări'!$L:$L,\"=\"&($A28&TEXT(F$4,\"lll.aa\")),'Caritabile şi sponsorizări'!$D:$D)+SUMIF('Detaliere cheltuieli'!$J:$J,\"=\"&($A28&TEXT(F$4,\"lll.aa\")),'Detaliere cheltuieli'!$E:$E)","v":0},{"$f":"SUMIF('Caritabile şi sponsorizări'!$L:$L,\"=\"&($A28&TEXT(G$4,\"lll.aa\")),'Caritabile şi sponsorizări'!$D:$D)+SUMIF('Detaliere cheltuieli'!$J:$J,\"=\"&($A28&TEXT(G$4,\"lll.aa\")),'Detaliere cheltuieli'!$E:$E)","v":0},{"$f":"SUMIF('Caritabile şi sponsorizări'!$L:$L,\"=\"&($A28&TEXT(H$4,\"lll.aa\")),'Caritabile şi sponsorizări'!$D:$D)+SUMIF('Detaliere cheltuieli'!$J:$J,\"=\"&($A28&TEXT(H$4,\"lll.aa\")),'Detaliere cheltuieli'!$E:$E)","v":0},{"$f":"SUMIF('Caritabile şi sponsorizări'!$L:$L,\"=\"&($A28&TEXT(I$4,\"lll.aa\")),'Caritabile şi sponsorizări'!$D:$D)+SUMIF('Detaliere cheltuieli'!$J:$J,\"=\"&($A28&TEXT(I$4,\"lll.aa\")),'Detaliere cheltuieli'!$E:$E)","v":0},{"$f":"SUMIF('Caritabile şi sponsorizări'!$L:$L,\"=\"&($A28&TEXT(J$4,\"lll.aa\")),'Caritabile şi sponsorizări'!$D:$D)+SUMIF('Detaliere cheltuieli'!$J:$J,\"=\"&($A28&TEXT(J$4,\"lll.aa\")),'Detaliere cheltuieli'!$E:$E)","v":0},{"$f":"SUMIF('Caritabile şi sponsorizări'!$L:$L,\"=\"&($A28&TEXT(K$4,\"lll.aa\")),'Caritabile şi sponsorizări'!$D:$D)+SUMIF('Detaliere cheltuieli'!$J:$J,\"=\"&($A28&TEXT(K$4,\"lll.aa\")),'Detaliere cheltuieli'!$E:$E)","v":0},{"$f":"SUMIF('Caritabile şi sponsorizări'!$L:$L,\"=\"&($A28&TEXT(L$4,\"lll.aa\")),'Caritabile şi sponsorizări'!$D:$D)+SUMIF('Detaliere cheltuieli'!$J:$J,\"=\"&($A28&TEXT(L$4,\"lll.aa\")),'Detaliere cheltuieli'!$E:$E)","v":0},{"$f":"SUMIF('Caritabile şi sponsorizări'!$L:$L,\"=\"&($A28&TEXT(M$4,\"lll.aa\")),'Caritabile şi sponsorizări'!$D:$D)+SUMIF('Detaliere cheltuieli'!$J:$J,\"=\"&($A28&TEXT(M$4,\"lll.aa\")),'Detaliere cheltuieli'!$E:$E)","v":0},{"$f":"SUMIF('Caritabile şi sponsorizări'!$L:$L,\"=\"&($A28&TEXT(N$4,\"lll.aa\")),'Caritabile şi sponsorizări'!$D:$D)+SUMIF('Detaliere cheltuieli'!$J:$J,\"=\"&($A28&TEXT(N$4,\"lll.aa\")),'Detaliere cheltuieli'!$E:$E)","v":0},{"$f":"SUM(C28:N28)","v":0}]
[]
[null,"Total",{"$f":"SUM(C6:C28)","v":{"v":750.75,"d":"750.75 lei"}},0,0,0,0,0,0,0,0,0,0,0,{"v":750.75,"d":"750.75 lei"}]

{"sheet":"Detaliere cheltuieli","index":2,"n_rows":103,"n_cols":10,"rows_kept":103}
["Cod contabil","Dată factură","Nr. fact.","Solicitat de"," Sumă cec ","Beneficiar","Destinaţie cec","Metodă de distribuire","Dată dosar","Câmp cheie construit"]
[1000,"2005-01-01",100,"Andrei Toma",{"v":750.75,"d":"750.75 lei"},"Mesagerie internaţională ","Curierat","Poştă","2005-01-04",{"$f":"A2&TEXT(B2,\"lll.aa\")","v":"1000lll38353.aa"}]
[7000,"2005-01-15",101,"Radu Vasilescu",{"v":2500,"d":"2,500.00 lei"},"Datum SRL ","2 computere de birou","Credit","2005-01-20","7000lll38367.aa"]
[{"$nulls":9},"lll.aa"]
[{"$nulls":9},"lll.aa"]
[{"$nulls":9},"lll.aa"]
[{"$nulls":9},"lll.aa"]
[{"$nulls":9},"lll.aa"]
[{"$nulls":9},"lll.aa"]
[{"$nulls":9},"lll.aa"]
[{"$nulls":9},"lll.aa"]
[{"$nulls":9},"lll.aa"]
[{"$nulls":9},"lll.aa"]
[{"$nulls":9},"lll.aa"]
[{"$nulls":9},"lll.aa"]
[{"$nulls":9},"lll.aa"]
[{"$nulls":9},"lll.aa"]
[{"$nulls":9},"lll.aa"]
[{"$nulls":9},"lll.aa"]
[{"$nulls":9},"lll.aa"]
[{"$nulls":9},"lll.aa"]
[{"$nulls":9},"lll.aa"]
[{"$nulls":9},"lll.aa"]
[{"$nulls":9},"lll.aa"]
[{"$nulls":9},"lll.aa"]
[{"$nulls":9},"lll.aa"]
[{"$nulls":9},"lll.aa"]
[{"$nulls":9},"lll.aa"]
[{"$nulls":9},"lll.aa"]
[{"$nulls":9},"lll.aa"]
[{"$nulls":9},"lll.aa"]
[{"$nulls":9},"lll.aa"]
[{"$nulls":9},"lll.aa"]
[{"$nulls":9},{"$f":"A34&TEXT(B34,\"lll.aa\")","v":"lll.aa"}]
[{"$nulls":9},"lll.aa"]
[{"$nulls":9},"lll.aa"]
[{"$nulls":9},"lll.aa"]
[{"$nulls":9},"lll.aa"]
[{"$nulls":9},"lll.aa"]
[{"$nulls":9},"lll.aa"]
[{"$nulls":9},"lll.aa"]
[{"$nulls":9},"lll.aa"]
[{"$nulls":9},"lll.aa"]
[{"$nulls":9},"lll.aa"]
[{"$nulls":9},"lll.aa"]
[{"$nulls":9},"lll.aa"]
[{"$nulls":9},"lll.aa"]
[{"$nulls":9},"lll.aa"]
[{"$nulls":9},"lll.aa"]
[{"$nulls":9},"lll.aa"]
[{"$nulls":9},"lll.aa"]
[{"$nulls":9},"lll.aa"]
[{"$nulls":9},"lll.aa"]
[{"$nulls":9},"lll.aa"]
[{"$nulls":9},"lll.aa"]
[{"$nulls":9},"lll.aa"]
[{"$nulls":9},"lll.aa"]
[{"$nulls":9},"lll.aa"]
[{"$nulls":9},"lll.aa"]
[{"$nulls":9},"lll.aa"]
[{"$nulls":9},"lll.aa"]
[{"$nulls":9},"lll.aa"]
[{"$nulls":9},"lll.aa"]
[{"$nulls":9},"lll.aa"]
[{"$nulls":9},"lll.aa"]
[{"$nulls":9},{"$f":"A66&TEXT(B66,\"lll.aa\")","v":"lll.aa"}]
[{"$nulls":9},"lll.aa"]
[{"$nulls":9},"lll.aa"]
[{"$nulls":9},"lll.aa"]
[{"$nulls":9},"lll.aa"]
[{"$nulls":9},"lll.aa"]
[{"$nulls":9},"lll.aa"]
[{"$nulls":9},"lll.aa"]
[{"$nulls":9},"lll.aa"]
[{"$nulls":9},"lll.aa"]
[{"$nulls":9},"lll.aa"]
[{"$nulls":9},"lll.aa"]
[{"$nulls":9},"lll.aa"]
[{"$nulls":9},"lll.aa"]
[{"$nulls":9},"lll.aa"]
[{"$nulls":9},"lll.aa"]
[{"$nulls":9},"lll.aa"]
[{"$nulls":9},"lll.aa"]
[{"$nulls":9},"lll.aa"]
[{"$nulls":9},"lll.aa"]
[{"$nulls":9},"lll.aa"]
[{"$nulls":9},"lll.aa"]
[{"$nulls":9},"lll.aa"]
[{"$nulls":9},"lll.aa"]
[{"$nulls":9},"lll.aa"]
[{"$nulls":9},"lll.aa"]
[{"$nulls":9},"lll.aa"]
[{"$nulls":9},"lll.aa"]
[{"$nulls":9},"lll.aa"]
[{"$nulls":9},"lll.aa"]
[{"$nulls":9},"lll.aa"]
[{"$nulls":9},"lll.aa"]
[{"$nulls":9},{"$f":"A98&TEXT(B98,\"lll.aa\")","v":"lll.aa"}]
[{"$nulls":9},"lll.aa"]
[{"$nulls":9},"lll.aa"]
[{"$nulls":9},"lll.aa"]
[{"$nulls":9},"lll.aa"]
[{"$nulls":9},"lll.aa"]

{"sheet":"Caritabile şi sponsorizări","index":3,"n_rows":109,"n_cols":12,"rows_kept":109}
["Cod contabil","Dată iniţiere solicitare cec","Solicitat de"," Sumă cec "," Contribuţie an precedent ","Beneficiar","Utilizat pentru","Încheiat de","Categorie","Metodă de distribuire","Dată dosar","Câmp cheie construit"]
[12000,"2005-01-20","Sorina Ionescu",{"v":1000,"d":"1,000.00 lei"},0,"Şcoală de arte ","Burse","Elena Popescu","Artă","Cec","2005-01-30",{"$f":"A2&TEXT(B2,\"lll.aa\")","v":"12000lll38372.aa"}]
[11000,"2005-02-15","Sorina Ionescu",{"v":2500,"d":"2,500.00 lei"},0,"Fabrica de jucării ","Comunitate","Ana Tănase","Comunitate","Cec","2005-03-01","11000lll38398.aa"]
[{"$nulls":11},"lll.aa"]
[{"$nulls":11},"lll.aa"]
[{"$nulls":11},"lll.aa"]
[{"$nulls":11},"lll.aa"]
[{"$nulls":11},"lll.aa"]
[{"$nulls":11},"lll.aa"]
[{"$nulls":11},"lll.aa"]
[{"$nulls":11},"lll.aa"]
[{"$nulls":11},"lll.aa"]
[{"$nulls":11},"lll.aa"]
[{"$nulls":11},"lll.aa"]
[{"$nulls":11},"lll.aa"]
[{"$nulls":11},"lll.aa"]
[{"$nulls":11},"lll.aa"]
[{"$nulls":11},"lll.aa"]
[{"$nulls":11},"lll.aa"]
[{"$nulls":11},"lll.aa"]
[{"$nulls":11},"lll.aa"]
[{"$nulls":11},"lll.aa"]
[{"$nulls":11},"lll.aa"]
[{"$nulls":11},"lll.aa"]
[{"$nulls":11},"lll.aa"]
[{"$nulls":11},"lll.aa"]
[{"$nulls":11},"lll.aa"]
[{"$nulls":11},"lll.aa"]
[{"$nulls":11},"lll.aa"]
[{"$nulls":11},"lll.aa"]
[{"$nulls":11},"lll.aa"]
[{"$nulls":11},"lll.aa"]
[{"$nulls":11},"lll.aa"]
[{"$nulls":11},{"$f":"A34&TEXT(B34,\"lll.aa\")","v":"lll.aa"}]
[{"$nulls":11},"lll.aa"]
[{"$nulls":11},"lll.aa"]
[{"$nulls":11},"lll.aa"]
[{"$nulls":11},"lll.aa"]
[{"$nulls":11},"lll.aa"]
[{"$nulls":11},"lll.aa"]
[{"$nulls":11},"lll.aa"]
[{"$nulls":11},"lll.aa"]
[{"$nulls":11},"lll.aa"]
[{"$nulls":11},"lll.aa"]
[{"$nulls":11},"lll.aa"]
[{"$nulls":11},"lll.aa"]
[{"$nulls":11},"lll.aa"]
[{"$nulls":11},"lll.aa"]
[{"$nulls":11},"lll.aa"]
[{"$nulls":11},"lll.aa"]
[{"$nulls":11},"lll.aa"]
[{"$nulls":11},"lll.aa"]
[{"$nulls":11},"lll.aa"]
[{"$nulls":11},"lll.aa"]
[{"$nulls":11},"lll.aa"]
[{"$nulls":11},"lll.aa"]
[{"$nulls":11},"lll.aa"]
[{"$nulls":11},"lll.aa"]
[{"$nulls":11},"lll.aa"]
[{"$nulls":11},"lll.aa"]
[{"$nulls":11},"lll.aa"]
[{"$nulls":11},"lll.aa"]
[{"$nulls":11},"lll.aa"]
[{"$nulls":11},"lll.aa"]
[{"$nulls":11},"lll.aa"]
[{"$nulls":11},{"$f":"A66&TEXT(B66,\"lll.aa\")","v":"lll.aa"}]
[{"$nulls":11},"lll.aa"]
[{"$nulls":11},"lll.aa"]
[{"$nulls":11},"lll.aa"]
[{"$nulls":11},"lll.aa"]
[{"$nulls":11},"lll.aa"]
[{"$nulls":11},"lll.aa"]
[{"$nulls":11},"lll.aa"]
[{"$nulls":11},"lll.aa"]
[{"$nulls":11},"lll.aa"]
[{"$nulls":11},"lll.aa"]
[{"$nulls":11},"lll.aa"]
[{"$nulls":11},"lll.aa"]
[{"$nulls":11},"lll.aa"]
[{"$nulls":11},"lll.aa"]
[{"$nulls":11},"lll.aa"]
[{"$nulls":11},"lll.aa"]
[{"$nulls":11},"lll.aa"]
[{"$nulls":11},"lll.aa"]
[{"$nulls":11},"lll.aa"]
[{"$nulls":11},"lll.aa"]
[{"$nulls":11},"lll.aa"]
[{"$nulls":11},"lll.aa"]
[{"$nulls":11},"lll.aa"]
[{"$nulls":11},"lll.aa"]
[{"$nulls":11},"lll.aa"]
[{"$nulls":11},"lll.aa"]
[{"$nulls":11},"lll.aa"]
[{"$nulls":11},"lll.aa"]
[{"$nulls":11},"lll.aa"]
[{"$nulls":11},"lll.aa"]
[{"$nulls":11},"lll.aa"]
[{"$nulls":11},{"$f":"A98&TEXT(B98,\"lll.aa\")","v":"lll.aa"}]
[{"$nulls":11},"lll.aa"]
[{"$nulls":11},"lll.aa"]
[{"$nulls":11},"lll.aa"]
[{"$nulls":11},"lll.aa"]
[{"$nulls":11},"lll.aa"]
[{"$nulls":11},"lll.aa"]
[{"$nulls":11},"lll.aa"]
[{"$nulls":11},"lll.aa"]
[{"$nulls":11},"lll.aa"]
[{"$nulls":11},"lll.aa"]
[{"$nulls":11},"lll.aa"]